fUSD/lending_fUSD_20250226
["ID","MTS","AMOUNT","RATE_DAILY","PERIOD"]
[354633848,1740599446194,-500.0,0.00035616,14]
[354633849,1740599446208,-500.0,0.00035616,14]
[354633850,1740599446218,-500.0,0.00035616,14]
[354633851,1740599446228,-500.0,0.00035616,14]
[354633852,1740599446238,-500.0,0.00035616,14]
[354633853,1740599446249,-500.0,0.00035616,14]
[354633854,1740599446258,-500.0,0.00035616,14]
[354633855,1740599446267,-26.94580895,0.00035616,14]
[354633885,1740600162648,204.0,0.00025943,30]
[354633886,1740600200920,539.38641716,0.00025943,120]
[354633892,1740600566173,-191.46,0.00016712,2]
[354633893,1740600566200,-450.0,0.00017548,2]
[354633894,1740600566225,-544.42559908,0.00018384,2]
[354633895,1740600566252,-450.0,0.00018384,2]
[354633896,1740600566278,-450.0,0.00018384,2]
[354633897,1740600566303,-250.0,0.00021,2]
[354633898,1740600566330,-200.0,0.00021918,2]
[354633899,1740600566356,-182.7,0.00021918,2]
[354633900,1740600566383,-300.0,0.00023,2]
[354633901,1740600566410,-500.0,0.00024567,6]
[354633902,1740600566437,-500.0,0.00024667,3]
[354633903,1740600566463,-500.0,0.00024767,6]
[354633904,1740600566489,-203.30675832,0.00024867,5]
[354633905,1740600566520,-296.69324168,0.00024867,5]
[354633906,1740600566546,-500.0,0.00024932,2]
[354633907,1740600566575,-500.0,0.00024932,2]
[354633908,1740600566605,-263.83473355,0.00024932,2]
[354633909,1740600566641,-236.16526645,0.00024932,2]
[354633910,1740600566932,-500.0,0.00024932,2]
[354633911,1740600566959,-500.0,0.00024932,2]
[354633912,1740600566986,-500.0,0.00024967,5]
[354633913,1740600567013,-350.0,0.00025,2]
[354633914,1740600567038,-500.0,0.00025067,4]
[354633915,1740600567066,-500.0,0.00025167,2]
[354633916,1740600567098,-500.0,0.00025267,3]
[354633917,1740600567126,-500.0,0.00025367,2]
[354633918,1740600567154,-500.0,0.00025467,5]
[354633919,1740600567181,-135.72709095,0.00025567,2]
[354633920,1740600567233,-364.27290905,0.00025567,2]
[354633921,1740600567261,-500.0,0.00025667,2]
[354633922,1740600567287,-500.0,0.00025767,4]
[354633923,1740600567315,-510.372029,0.000258,2]
[354633924,1740600567342,-500.0,0.00025867,6]
[354633925,1740600567369,-500.0,0.00025967,3]
[354633926,1740600567395,-500.0,0.00026067,5]
[354633927,1740600567423,-500.0,0.00026167,5]
[354633928,1740600567449,-500.0,0.00026267,3]
[354633929,1740600567475,-347.24741935,0.00026367,7]
[354633930,1740600567522,-152.75258065,0.00026367,7]
[354633931,1740600567548,-500.0,0.00026467,3]
[354633932,1740600567579,-275.09,0.00026849,2]
[354633933,1740600567610,-207.27742774,0.000269,4]
[354633934,1740600567637,-207.27742752,0.00028567,5]
[354633935,1740600567671,-2000.0,0.00028793,5]
[354633936,1740600567706,-207.27742752,0.00030233,5]
[354633937,1740600567733,-300.0,0.000304,2]
[354633938,1740600567759,-250.0,0.000304,2]
[354633939,1740600567795,-622.21749397,0.00030594,120]
[354633940,1740600567835,-1377.78250603,0.00030594,120]
[354633941,1740600567861,-153.88,0.00030604,2]
[354633942,1740600567888,-150.0,0.00030687,2]
[354633943,1740600567917,-202.0,0.0003086,2]
[354633944,1740600567942,-164.53,0.00030903,2]
[354633945,1740600567968,-987.97,0.00030918,2]
[354633946,1740600567994,-167.54,0.00031519,2]
[354633947,1740600568024,-150.0,0.00031672,2]
[354633948,1740600568050,-207.27742752,0.000319,6]
[354633949,1740600568075,-1000.0,0.000319,2]
[354633950,1740600568101,-160.91242385,0.00031971,91]
[354633989,1740600631753,-16.98757615,0.00031971,91]
[354633990,1740600631762,-150.0,0.00031985,2]
[354633991,1740600631771,-200.0,0.00032,30]
[354633992,1740600631781,-858.57,0.00032132,2]
[354633993,1740600631790,-300.0,0.00032255,2]
[354633994,1740600631799,-202.0,0.00032403,2]
[354633995,1740600631809,-275.09,0.00032646,2]
[354633996,1740600631818,-250.0,0.00032654,2]
[354633997,1740600631827,-167.54,0.00033253,2]
[354633998,1740600631837,-150.0,0.00033283,2]
[354633999,1740600631846,-300.0,0.00033625,2]
[354634000,1740600631856,-1214.16763201,0.00033922,2]
[354634001,1740600631869,-1685.65236799,0.00033922,2]
[354634002,1740600631879,-202.0,0.00033946,2]
[354634003,1740600631888,-200.0,0.00034257,2]
[354634004,1740600631898,-1000.0,0.0003431,2]
[354634005,1740600631908,-858.57,0.00034396,2]
[354634006,1740600631917,-5359.67079199,0.00034448,2]
[354634007,1740600631929,-420.8670224,0.00034448,2]
[354634008,1740600631940,-12644.4,0.00034448,2]
[354634009,1740600631952,-395.97891996,0.00034448,2]
[354634010,1740600631967,-2090.66945,0.00034448,2]
[354634011,1740600631986,-1361.11506792,0.00034448,2]
[354634012,1740600631998,-543.86946,0.00034448,2]
[354634013,1740600634849,-1083.42928773,0.00034448,2]
[354634014,1740600634858,-250.0,0.00034539,2]
[354634015,1740600634871,-158.41,0.00034554,120]
[354634016,1740600634881,-150.0,0.00034581,2]
[354634017,1740600634891,-598.03,0.00034587,120]
[354634018,1740600634900,-1000.0,0.00034587,2]
[354634019,1740600634909,-108.10071227,0.000349,7]
[354634020,1740600634920,-99.59491569,0.000349,7]
[354634021,1740600634929,-150.0,0.00034975,7]
[354634022,1740600634939,-868.87903927,0.00034984,5]
[354634023,1740600634948,-167.54,0.00034987,2]
[354634025,1740600634958,-154.39,0.00035084,2]
[354634027,1740600634967,-450.0,0.00035168,2]
[354634029,1740600634977,-221.14954072,0.00035173,2]
[354634030,1740600634986,-3052.35176086,0.000353,5]
[354634033,1740600634997,-2497.64823914,0.000353,5]
[354634035,1740600635006,-3197.85176086,0.00035355,2]
[354634037,1740600635017,-630.88197967,0.00035355,2]
[354634040,1740600635036,-924.20964037,0.00035355,2]
[354634298,1740600637690,-180.0,0.000349,120]
[354634300,1740600637700,-2751.2030191,0.00035355,2]
[354634322,1740600637899,-5350.1794,0.00035415,2]
[354634324,1740600637909,-222.7608,0.00035416,2]
[354634326,1740600637918,-2561.94782665,0.00035455,2]
[354634329,1740600637930,-690.56758519,0.00035455,2]
[354634331,1740600637945,-2185.74070676,0.00035455,2]
[354634334,1740600637956,-4079.38824232,0.00035455,2]
[354634337,1740600637975,-482.34563908,0.00035455,2]
[354634339,1740600637984,-150.99,0.00035455,2]
[354634341,1740600637993,-767.39775425,0.00035455,2]
[354634343,1740600638005,-961.03224575,0.00035455,2]
[354634345,1740600638014,-1520.83,0.00035455,2]
[354634347,1740600638024,-9696.43,0.00035455,30]
[354634349,1740600638033,-154.39,0.00035474,2]
[354634351,1740600638042,-202.0,0.00035489,2]
[354634353,1740600638052,-2500.0,0.00035514,2]
[354634355,1740600638062,-2420.7473,0.00035515,2]
[354634357,1740600638071,-1474.1408,0.00035515,2]
[354634359,1740600638081,-580.47503381,0.00035515,37]
[354634361,1740600638090,-4464.1023973,0.00035515,2]
[354634363,1740600638099,-22815.08403002,0.00035515,2]
[354634530,1740600639738,-684.219583,0.00035515,2]
[354634532,1740600639749,-8766.70508698,0.00035515,2]
[354634534,1740600639759,-500.0,0.00035516,2]
[354634536,1740600639768,-1000.0,0.00035516,2]
[354634538,1740600639778,-4509.307,0.00035516,42]
[354634540,1740600639787,-212.99,0.00035516,42]
[354634542,1740600639795,-337.98618485,0.00035516,8]
[354634544,1740600639804,-810.39639772,0.00035516,2]
[354634546,1740600639814,-1569.17951,0.00035516,21]
[354634548,1740600639823,-167.27085859,0.00035516,2]
[354634550,1740600639832,-2253.63146567,0.00035516,9]
[354634552,1740600639841,-327.27937672,0.00035516,2]
[354634554,1740600639850,-5672.26837964,0.00035516,2]
[354634556,1740600639859,-603.75218809,0.0003557,2]
[354634558,1740600639868,-248.66545494,0.00035615,7]
[354634560,1740600639880,-1405.57476417,0.00035615,2]
[354634563,1740600639891,-5511.61374963,0.00035615,2]
[354634565,1740600639903,-263.3,0.00035615,2]
[354634567,1740600639914,-2394.0508456,0.00035615,2]
[354634569,1740600639923,-150.1859001,0.00035615,2]
[354634573,1740600639951,-423.0798097,0.00035615,2]
[354634575,1740600639962,-709.84716856,0.00035615,2]
[354634577,1740600639973,-455.43321877,0.00035615,2]
[354634579,1740600639984,-435.44320889,0.00035615,2]
[354634581,1740600639995,-567.85302288,0.00035615,2]
[354634583,1740600640004,-85.79995312,0.00035615,2]
[354634585,1740600640015,-682.54463803,0.00035615,2]
[354634588,1740600640030,-923.06398835,0.00035615,2]
[354634590,1740600640039,-229.47624869,0.00035615,7]
[354634592,1740600640048,-500.0,0.00035615,7]
[354634594,1740600640057,-418.19415365,0.00035615,7]
[354634596,1740600640066,-500.0,0.00035615,7]
[354634598,1740600640075,-500.0,0.00035615,7]
[354634600,1740600640084,-500.0,0.00035615,7]
[354634601,1740600640093,-500.0,0.00035615,7]
[354634602,1740600640102,-500.0,0.00035615,7]
[354634603,1740600640111,-500.0,0.00035615,7]
[354634604,1740600640122,-500.0,0.00035615,7]
[354634605,1740600640131,-214891.18427023,0.00035616,25]
[354634606,1740600640146,-1692.04651401,0.00035616,25]
[354634607,1740600640157,-1684.36,0.00035616,25]
[354634608,1740600640167,-1167.74814991,0.00035616,25]
[354634609,1740600640179,-1131.00227991,0.00035616,25]
[354634610,1740600640189,-846.48459,0.00035616,25]
[354635034,1740600644060,-626.7923,0.00035516,2]
[354635037,1740600644069,-298076.07366238,0.00035616,25]
[354635040,1740600644079,-523.51396681,0.00035616,14]
[354635043,1740600644088,-500.0,0.00035616,14]
[354635046,1740600644097,-154.17641546,0.00035616,14]
[354635049,1740600644107,-500.70049974,0.00035616,14]
[354635052,1740600644116,-501.09154052,0.00035616,14]
[354635055,1740600644127,-501.41229021,0.00035616,2]
[354635058,1740600644136,-501.02605462,0.00035616,14]
[354635061,1740600644145,-155.59002312,0.00035616,14]
[354635064,1740600644154,-510.41801372,0.00035616,14]
[354635067,1740600644164,-504.02299126,0.00035616,14]
[354635070,1740600644173,-500.0,0.00035616,14]
[354635073,1740600644181,-300.70961519,0.00035616,14]
[354635076,1740600644192,-262.67046833,0.00035616,14]
[354635079,1740600644201,-500.67801564,0.00035616,14]
[354635081,1740600644210,-501.08488989,0.00035616,14]
[354635082,1740600644219,-500.0,0.00035616,14]
[354635084,1740600644228,-500.0,0.00035616,14]
[354635086,1740600644237,-501.5715302,0.00035616,14]
[354635088,1740600644246,-500.99872389,0.00035616,14]
[354635090,1740600644256,-501.1668583,0.00035616,14]
[354635092,1740600644265,-566.3098,0.00035616,14]
[354635094,1740600644274,-500.0,0.00035616,14]
[354635096,1740600644283,-501.63375026,0.00035616,14]
[354635098,1740600644292,-500.63929996,0.00035616,14]
[354635100,1740600644301,-500.0,0.00035616,14]
[354635102,1740600644311,-500.42253956,0.00035616,14]
[354635105,1740600644320,-518.57268351,0.00035616,14]
[354635107,1740600644329,-501.63024234,0.00035616,14]
[354635108,1740600644338,-503.50697596,0.00035616,14]
[354635110,1740600644347,-500.0,0.00035616,14]
[354635113,1740600644358,-501.07952248,0.00035616,14]
[354635115,1740600644370,-536.67808976,0.00035616,14]
[354635117,1740600644384,-287.26715094,0.00035616,14]
[354635120,1740600644397,-500.0,0.00035616,14]
[354635122,1740600644410,-500.94075736,0.00035616,14]
[354635124,1740600644422,-500.0,0.00035616,14]
[354635126,1740600644433,-500.0,0.00035616,14]
[354635129,1740600644446,-504.69226305,0.00035616,14]
[354635131,1740600644467,-500.0,0.00035616,14]
[354635133,1740600644487,-500.99034203,0.00035616,14]
[354635136,1740600644500,-502.603287,0.00035616,14]
[354635138,1740600644512,-500.0,0.00035616,14]
[354635140,1740600644526,-501.39520554,0.00035616,14]
[354635142,1740600644542,-500.0,0.00035616,14]
[354635144,1740600644553,-500.0,0.00035616,14]
[354635146,1740600644564,-500.0,0.00035616,14]
[354635148,1740600644575,-200.0,0.00035616,2]
[354635150,1740600644584,-500.0,0.00035616,14]
[354635152,1740600644595,-500.0,0.00035616,14]
[354635154,1740600644613,-500.0,0.00035616,14]
[354635156,1740600644625,-273.62347276,0.00035616,14]
[354635158,1740600644637,-500.0,0.00035616,14]
[354635160,1740600644650,-503.55205819,0.00035616,14]
[354635162,1740600644662,-500.0,0.00035616,14]
[354635164,1740600644674,-500.0,0.00035616,14]
[354635166,1740600644686,-500.0,0.00035616,14]
[354635168,1740600644698,-500.0,0.00035616,14]
[354635170,1740600644709,-500.0,0.00035616,14]
[354635172,1740600644721,-500.0,0.00035616,14]
[354635174,1740600644733,-513.34991646,0.00035616,14]
[354635176,1740600644745,-312.08940879,0.00035616,14]
[354635178,1740600644757,-500.0,0.00035616,14]
[354635180,1740600644769,-500.0,0.00035616,14]
[354635182,1740600644784,-506.77352249,0.00035616,14]
[354635184,1740600644796,-500.0,0.00035616,14]
[354635187,1740600644816,-500.0,0.00035616,14]
[354635189,1740600644830,-500.0,0.00035616,14]
[354635191,1740600644844,-500.0,0.00035616,14]
[354635194,1740600644860,-500.0,0.00035616,14]
[354635196,1740600644872,-500.0,0.00035616,14]
[354635198,1740600644889,-500.0,0.00035616,14]
[354635200,1740600644903,-500.0,0.00035616,14]
[354635202,1740600644914,-509.14540993,0.00035616,14]
[354635204,1740600644925,-500.0,0.00035616,14]
[354635207,1740600644938,-500.0,0.00035616,14]
[354635209,1740600644949,-500.0,0.00035616,14]
[354635211,1740600644963,-500.0,0.00035616,14]
[354635213,1740600644979,-500.0,0.00035616,14]
[354635215,1740600644991,-224.6310781,0.00035616,14]
[354635217,1740600645002,-500.0,0.00035616,14]
[354635219,1740600645012,-500.0,0.00035616,14]
[354635221,1740600645023,-500.0,0.00035616,14]
[354635223,1740600645035,-500.0,0.00035616,14]
[354635226,1740600645048,-500.0,0.00035616,14]
[354635228,1740600645063,-600.99920484,0.00035616,14]
[354635230,1740600645084,-500.0,0.00035616,14]
[354635232,1740600645096,-504.2110121,0.00035616,14]
[354635234,1740600645108,-500.0,0.00035616,14]
[354635236,1740600645119,-500.0,0.00035616,14]
[354635238,1740600645133,-500.0,0.00035616,14]
[354635240,1740600645146,-500.0,0.00035616,14]
[354635242,1740600645158,-500.0,0.00035616,14]
[354635244,1740600645170,-500.0,0.00035616,14]
[354635246,1740600645186,-513.23781949,0.00035616,14]
[354635249,1740600645198,-500.0,0.00035616,14]
[354635251,1740600645209,-500.0,0.00035616,14]
[354635253,1740600645221,-501.12476208,0.00035616,14]
[354635255,1740600645233,-500.0,0.00035616,14]
[354635257,1740600645244,-502.42409432,0.00035616,14]
[354635258,1740600645255,-155.605678,0.00035616,14]
[354635261,1740600645267,-500.0,0.00035616,14]
[354635263,1740600645278,-1038.038844,0.00035616,14]
[354635265,1740600645290,-500.0,0.00035616,14]
[354635267,1740600645301,-500.76471683,0.00035616,14]
[354635269,1740600645316,-500.0,0.00035616,14]
[354635272,1740600645329,-500.0,0.00035616,14]
[354635274,1740600645342,-500.0,0.00035616,14]
[354635276,1740600645354,-500.0,0.00035616,14]
[354635278,1740600645366,-500.0,0.00035616,14]
[354635280,1740600645381,-500.0,0.00035616,14]
[354635282,1740600645393,-500.0,0.00035616,14]
[354635284,1740600645406,-500.0,0.00035616,14]
[354635287,1740600645419,-500.0,0.00035616,14]
[354635289,1740600645432,-500.0,0.00035616,14]
[354635291,1740600645444,-500.0,0.00035616,14]
[354635293,1740600645455,-500.0,0.00035616,14]
[354635295,1740600645467,-510.33017759,0.00035616,14]
[354635297,1740600645478,-500.0,0.00035616,14]
[354635299,1740600645490,-500.0,0.00035616,14]
[354635302,1740600645502,-500.0,0.00035616,14]
[354635304,1740600645513,-500.0,0.00035616,14]
[354635306,1740600645526,-500.0,0.00035616,14]
[354635308,1740600645537,-500.0,0.00035616,14]
[354635310,1740600645548,-500.0,0.00035616,14]
[354635312,1740600645560,-556.33,0.00035616,14]
[354635315,1740600645571,-216.27073675,0.00035616,14]
[354635354,1740600645902,-283.72926325,0.00035616,14]
[354635356,1740600645912,-500.0,0.00035616,7]
[354635358,1740600645924,-500.0,0.00035616,14]
[354635360,1740600645935,-500.0,0.00035616,14]
[354635362,1740600645946,-500.0,0.00035616,14]
[354635364,1740600645957,-500.0,0.00035616,14]
[354635366,1740600645968,-500.0,0.00035616,14]
[354635368,1740600645978,-500.0,0.00035616,14]
[354635370,1740600645989,-190.30886404,0.00035616,14]
[354635373,1740600646003,-309.69113596,0.00035616,14]
[354635375,1740600646014,-500.0,0.00035616,14]
[354635377,1740600646025,-512.44,0.00035616,14]
[354635379,1740600646037,-500.0,0.00035616,14]
[354635381,1740600646049,-500.0,0.00035616,14]
[354635383,1740600646059,-500.0,0.00035616,14]
[354635386,1740600646070,-500.0,0.00035616,14]
[354635388,1740600646081,-175.74726,0.00035616,14]
[354635390,1740600646092,-500.0,0.00035616,14]
[354635392,1740600646102,-500.0,0.00035616,14]
[354635394,1740600646112,-500.0,0.00035616,14]
[354635396,1740600646123,-500.0,0.00035616,14]
[354635397,1740600646137,-500.0,0.00035616,14]
[354635398,1740600646148,-500.0,0.00035616,14]
[354635399,1740600646159,-500.0,0.00035616,14]
[354635400,1740600646170,-500.0,0.00035616,14]
[354635401,1740600646181,-500.0,0.00035616,14]
[354635402,1740600646192,-500.0,0.00035616,14]
[354635403,1740600646203,-300.0,0.00035616,14]
[354635404,1740600646214,-500.86103626,0.00035616,14]
[354635405,1740600646224,-500.0,0.00035616,14]
[354635406,1740600646234,-500.0,0.00035616,14]
[354635407,1740600646243,-500.0,0.00035616,14]
[354635408,1740600646253,-500.0,0.00035616,14]
[354635409,1740600646263,-500.0,0.00035616,14]
[354635436,1740600646531,-500.0,0.00035616,14]
[354635441,1740600646550,-500.0,0.00035616,14]
[354635444,1740600646561,-518.25494925,0.00035616,14]
[354635447,1740600646571,-500.0,0.00035616,14]
[354635450,1740600646580,-500.0,0.00035616,14]
[354635453,1740600646589,-500.0,0.00035616,14]
[354635456,1740600646598,-283.00561953,0.00035616,14]
[354635462,1740600646632,-216.99438047,0.00035616,14]
[354635464,1740600646643,-500.0,0.00035616,14]
[354635466,1740600646652,-500.0,0.00035616,14]
[354635468,1740600646661,-500.0,0.00035616,14]
[354635470,1740600646671,-500.0,0.00035616,14]
[354635472,1740600646680,-500.0,0.00035616,14]
[354635474,1740600646691,-229.17,0.00035616,14]
[354635476,1740600646700,-304.09583647,0.00035616,14]
[354635479,1740600646716,-195.90416353,0.00035616,14]
[354635481,1740600646725,-500.0,0.00035616,14]
[354635483,1740600646734,-500.0,0.00035616,14]
[354635484,1740600646744,-500.0,0.00035616,14]
[354635487,1740600646754,-500.0,0.00035616,14]
[354635488,1740600646763,-500.0,0.00035616,14]
[354635491,1740600646773,-500.0,0.00035616,14]
[354635492,1740600646783,-500.0,0.00035616,14]
[354635494,1740600646792,-500.0,0.00035616,14]
[354635496,1740600646801,-500.0,0.00035616,14]
[354635498,1740600646811,-500.0,0.00035616,14]
[354635500,1740600646821,-478.49510091,0.00035616,14]
[354635503,1740600646837,-21.50489909,0.00035616,14]
[354635505,1740600646846,-363.61010089,0.00035616,14]
[354635507,1740600646857,-136.38989911,0.00035616,14]
[354635509,1740600646866,-502.07789325,0.00035616,14]
[354635511,1740600646875,-500.0,0.00035616,14]
[354635513,1740600646887,-500.0,0.00035616,14]
[354635515,1740600646896,-500.0,0.00035616,14]
[354635517,1740600646906,-500.0,0.00035616,14]
[354635519,1740600646915,-500.0,0.00035616,14]
[354635521,1740600646924,-500.0,0.00035616,14]
[354635523,1740600646934,-502.92614776,0.00035616,14]
[354635525,1740600646943,-596.10055363,0.00035616,14]
[354635527,1740600646952,-500.0,0.00035616,14]
[354635529,1740600646961,-500.0,0.00035616,14]
[354635531,1740600646970,-500.0,0.00035616,14]
[354635533,1740600646979,-500.0,0.00035616,14]
[354635535,1740600646988,-500.0,0.00035616,14]
[354635537,1740600646997,-500.0,0.00035616,14]
[354635539,1740600647007,-500.0,0.00035616,14]
[354635541,1740600647019,-500.0,0.00035616,14]
[354635543,1740600647028,-500.0,0.00035616,14]
[354635545,1740600647037,-500.0,0.00035616,14]
[354635547,1740600647046,-501.4767912,0.00035616,14]
[354635549,1740600647055,-500.0,0.00035616,14]
[354635551,1740600647065,-500.0,0.00035616,14]
[354635553,1740600647074,-500.0,0.00035616,14]
[354635555,1740600647083,-500.0,0.00035616,14]
[354635557,1740600647092,-500.0,0.00035616,14]
[354635559,1740600647101,-500.0,0.00035616,14]
[354635561,1740600647110,-500.0,0.00035616,14]
[354635563,1740600647119,-500.0,0.00035616,14]
[354635565,1740600647129,-500.0,0.00035616,14]
[354635567,1740600647138,-500.0,0.00035616,14]
[354635568,1740600647147,-500.0,0.00035616,14]
[354635570,1740600647156,-500.0,0.00035616,14]
[354635571,1740600647166,-500.0,0.00035616,14]
[354635572,1740600647175,-1000.0,0.00035616,14]
[354635573,1740600647184,-500.0,0.00035616,14]
[354635574,1740600647193,-500.0,0.00035616,14]
[354635575,1740600647203,-500.0,0.00035616,14]
[354635576,1740600647212,-500.0,0.00035616,14]
[354635577,1740600647221,-500.0,0.00035616,14]
[354635578,1740600647230,-500.0,0.00035616,14]
[354635580,1740600647239,-500.0,0.00035616,14]
[354635582,1740600647248,-500.0,0.00035616,14]
[354635584,1740600647258,-371.97798323,0.00035616,14]
[354635585,1740600647267,-523.36,0.00035616,14]
[354635586,1740600647276,-500.0,0.00035616,14]
[354635588,1740600647285,-500.0,0.00035616,14]
[354635590,1740600647294,-500.0,0.00035616,14]
[354635591,1740600647304,-500.0,0.00035616,14]
[354635592,1740600647314,-500.0,0.00035616,14]
[354635593,1740600647323,-500.0,0.00035616,14]
[354635594,1740600647332,-500.0,0.00035616,14]
[354635595,1740600647342,-500.0,0.00035616,14]
[354635596,1740600647351,-500.0,0.00035616,14]
[354635597,1740600647361,-500.0,0.00035616,14]
[354635598,1740600647370,-500.0,0.00035616,14]
[354635599,1740600647381,-500.0,0.00035616,14]
[354635600,1740600647391,-500.0,0.00035616,14]
[354635602,1740600647400,-500.0,0.00035616,14]
[354635603,1740600647409,-500.0,0.00035616,14]
[354635605,1740600647418,-246.849202,0.00035616,14]
[354635607,1740600647427,-500.0,0.00035616,14]
[354635608,1740600647439,-500.0,0.00035616,14]
[354635609,1740600647450,-500.0,0.00035616,14]
[354635610,1740600647460,-500.0,0.00035616,14]
[354635611,1740600647469,-500.0,0.00035616,14]
[354635612,1740600647479,-500.0,0.00035616,14]
[354635613,1740600647488,-500.0,0.00035616,14]
[354635614,1740600647498,-500.0,0.00035616,14]
[354635615,1740600647507,-500.0,0.00035616,14]
[354635616,1740600647517,-500.0,0.00035616,14]
[354635617,1740600647526,-500.0,0.00035616,14]
[354635618,1740600647536,-500.0,0.00035616,14]
[354635619,1740600647547,-500.0,0.00035616,14]
[354635620,1740600647556,-500.0,0.00035616,14]
[354635621,1740600647566,-500.0,0.00035616,14]
[354635622,1740600647575,-500.0,0.00035616,14]
[354635623,1740600647585,-501.21,0.00035616,14]
[354635624,1740600647594,-500.0,0.00035616,14]
[354635625,1740600647605,-500.0,0.00035616,14]
[354635626,1740600647618,-308.33,0.00035616,14]
[354635627,1740600647627,-500.0,0.00035616,14]
[354635628,1740600647638,-500.0,0.00035616,14]
[354635629,1740600647649,-500.0,0.00035616,14]
[354635630,1740600647658,-500.0,0.00035616,14]
[354635631,1740600647668,-500.0,0.00035616,14]
[354635632,1740600647677,-500.0,0.00035616,14]
[354635633,1740600647687,-500.0,0.00035616,14]
[354635634,1740600647698,-500.0,0.00035616,14]
[354635635,1740600647707,-500.0,0.00035616,14]
[354635636,1740600647717,-500.0,0.00035616,14]
[354635637,1740600647726,-500.0,0.00035616,14]
[354635638,1740600647736,-500.0,0.00035616,14]
[354635639,1740600647745,-578.47,0.00035616,14]
[354635640,1740600647755,-500.0,0.00035616,14]
[354635641,1740600647765,-390.83,0.00035616,14]
[354635642,1740600647774,-569.74,0.00035616,14]
[354635643,1740600647784,-500.0,0.00035616,14]
[354635644,1740600647794,-500.0,0.00035616,14]
[354635645,1740600647803,-500.0,0.00035616,14]
[354635646,1740600647813,-500.0,0.00035616,14]
[354635647,1740600647822,-500.0,0.00035616,14]
[354635648,1740600647831,-500.0,0.00035616,14]
[354635649,1740600647841,-156.63430759,0.00035616,14]
[354635650,1740600647851,-500.0,0.00035616,14]
[354635651,1740600647860,-537.06924038,0.00035616,14]
[354635652,1740600647870,-500.0,0.00035616,14]
[354635653,1740600647879,-500.0,0.00035616,14]
[354635654,1740600647889,-500.0,0.00035616,14]
[354635655,1740600647899,-500.0,0.00035616,14]
[354635656,1740600647908,-500.0,0.00035616,14]
[354635657,1740600647917,-500.0,0.00035616,14]
[354635658,1740600647927,-546.45936884,0.00035616,14]
[354635659,1740600647937,-289.88345774,0.00035616,14]
[354635660,1740600647946,-500.0,0.00035616,14]
[354635661,1740600647956,-500.0,0.00035616,14]
[354635662,1740600647966,-500.0,0.00035616,14]
[354635663,1740600647975,-500.0,0.00035616,14]
[354635664,1740600647985,-500.0,0.00035616,14]
[354635665,1740600647994,-500.0,0.00035616,14]
[354635666,1740600648003,-500.0,0.00035616,14]
[354635667,1740600648012,-500.0,0.00035616,14]
[354635668,1740600648022,-500.0,0.00035616,14]
[354635669,1740600648031,-500.0,0.00035616,14]
[354635670,1740600648041,-500.0,0.00035616,14]
[354635671,1740600648050,-500.0,0.00035616,14]
[354635672,1740600648059,-500.0,0.00035616,14]
[354635673,1740600648069,-500.0,0.00035616,14]
[354635674,1740600648078,-500.0,0.00035616,14]
[354635675,1740600648088,-500.0,0.00035616,14]
[354635676,1740600648097,-500.0,0.00035616,14]